bitfinex-derivatives/quotes_SOLF0:USTF0_20250310
["timestamp","ask_amount","ask_price","bid_price","bid_amount"]
[1741591250962,21.64775405,127.77,127.72,7.8291]
[1741591251164,0.05271601,127.75,127.72,0.05262772]
[1741591252869,0.05271601,127.75,127.72,7.88172772]
[1741591253166,0.05271601,127.75,127.72,0.05262772]
[1741591254369,0.05271601,127.75,127.74,7.8282]
[1741591255061,0.05271601,127.75,127.73,7.8285]
[1741591255262,0.05271601,127.75,127.72,28.75262772]
[1741591255470,0.05271601,127.75,127.72,0.05262772]
[1741591256163,0.05271601,127.75,127.72,7.88172772]
[1741591257570,0.05271601,127.75,127.73,7.8286]
[1741591257869,0.05271601,127.75,127.72,0.05262772]
[1741591258070,0.05271601,127.75,127.74,7.8282]
[1741591258370,0.05271601,127.75,127.72,0.05262772]
[1741591259576,0.05271601,127.75,127.73,7.8287]
[1741591259774,0.05271601,127.75,127.72,0.05262772]
[1741591260073,0.05271601,127.75,127.72,7.88152772]
[1741591260374,0.05271601,127.75,127.72,0.05262772]
[1741591260774,7.8288,127.73,127.72,0.05262772]
[1741591263077,7.8285,127.74,127.72,0.05262772]
[1741591265077,28.73271601,127.75,127.72,0.05262772]
[1741591265275,7.8288,127.73,127.72,0.05262772]
[1741591266171,28.73271601,127.75,127.72,0.05262772]
[1741591266376,0.05271601,127.75,127.72,0.05262772]
[1741591267276,7.8288,127.73,127.72,0.05262772]
[1741591268878,7.8288,127.73,127.72,2.772e-05]
[1741591271275,7.8285,127.74,127.72,2.772e-05]
[1741591272480,7.8288,127.73,127.72,2.772e-05]
[1741591272682,36.5288,127.73,127.72,2.772e-05]
[1741591273684,28.7,127.73,127.64,2.032]
[1741591273982,13.82115405,127.71,127.64,2.032]
[1741591274277,13.82115405,127.71,127.64,9.8661]
[1741591274787,7.8329,127.67,127.66,0.05432862]
[1741591277080,0.05862066,127.69,127.66,0.05432862]
[1741591277685,7.8325,127.67,127.66,0.05432862]
[1741591278282,0.05862066,127.69,127.66,0.05432862]
[1741591278888,7.832,127.68,127.66,0.05432862]
[1741591279186,0.05862066,127.69,127.66,0.05432862]
[1741591279384,7.89042066,127.69,127.66,7.88722862]
[1741591280081,0.05862066,127.69,127.66,28.79432862]
[1741591280781,0.05862066,127.69,127.66,42.61548267]
[1741591280981,42.56115405,127.75,127.67,2.0925]
[1741591281388,13.82115405,127.73,127.67,2.0925]
[1741591281584,7.8305,127.71,127.68,7.8317]
[1741591281786,44.67745405,127.75,127.67,2.0925]
[1741591282091,0.05692968,127.72,127.7,0.05418573]
[1741591282386,7.83,127.71,127.7,0.05418573]
[1741591283989,7.88662968,127.72,127.7,0.05418573]
[1741591284385,7.83,127.71,127.7,0.05418573]
[1741591285585,0.05692968,127.72,127.7,7.88478573]
[1741591286389,0.05692968,127.72,127.7,0.05418573]
[1741591286791,7.83,127.71,127.7,0.05418573]
[1741591288887,7.88652968,127.72,127.7,0.05418573]
[1741591289792,0.05692968,127.72,127.7,0.05418573]
[1741591289990,7.83,127.71,127.7,0.05418573]
[1741591290189,0.05692968,127.72,127.7,0.05418573]
[1741591290394,0.05692968,127.72,127.71,7.83]
[1741591290882,0.05692968,127.72,127.7,7.88458573]
[1741591291284,0.05692968,127.72,127.7,0.05418573]
[1741591291480,0.05692968,127.72,127.71,7.83]
[1741591291684,0.05692968,127.72,127.7,0.05418573]
[1741591292393,7.83,127.71,127.7,0.05418573]
[1741591292888,0.05692968,127.72,127.7,0.05418573]
[1741591293192,7.88682968,127.72,127.7,0.05418573]
[1741591293590,0.05692968,127.72,127.7,0.05418573]
[1741591293792,0.05692968,127.72,127.7,7.88448573]
[1741591294189,7.88672968,127.72,127.7,0.05418573]
[1741591294589,0.05692968,127.72,127.7,0.05418573]
[1741591296192,7.83,127.71,127.7,0.05418573]
[1741591297590,21.65115405,127.71,127.7,8.573e-05]
[1741591297792,13.82115405,127.71,127.63,2.0496]
[1741591297984,13.82115405,127.68,127.62,7.8353]
[1741591298186,13.82115405,127.68,127.61,28.66]
[1741591298392,13.82115405,127.68,127.6,2.0213]
[1741591298593,13.82115405,127.68,127.61,28.66]
[1741591298786,0.05434044,127.65,127.63,0.04948464]
[1741591299094,0.05434044,127.65,127.63,7.88398464]
[1741591299287,0.05434044,127.65,127.63,0.04948464]
[1741591300395,0.05434044,127.65,127.64,7.8343]
[1741591300794,0.05434044,127.65,127.63,0.04948464]
[1741591300991,7.88824044,127.65,127.63,0.04948464]
[1741591301393,0.05434044,127.65,127.63,0.04948464]
[1741591302999,7.88824044,127.65,127.63,0.04948464]
[1741591303199,0.05434044,127.65,127.63,0.04948464]
[1741591303701,7.8343,127.64,127.63,0.04948464]
[1741591305501,7.88834044,127.65,127.63,0.04948464]
[1741591306003,7.8343,127.64,127.63,0.04948464]
[1741591306806,0.05434044,127.65,127.63,0.04948464]
[1741591306998,7.88844044,127.65,127.63,0.04948464]
[1741591307404,0.05434044,127.65,127.63,0.04948464]
[1741591307706,7.8343,127.64,127.63,0.04948464]
[1741591308904,7.8361,127.62,127.57,28.6]
[1741591309401,30.6044,127.65,127.57,28.6]
[1741591310105,0.04943979,127.62,127.6,0.0591866]
[1741591310306,0.04943979,127.62,127.61,7.8362]
[1741591310608,0.04943979,127.62,127.6,0.0591866]
[1741591311003,0.04943979,127.62,127.6,7.8958866]
[1741591313108,0.04943979,127.62,127.61,7.8362]
[1741591315907,7.88503979,127.62,127.6,36.4557866]
[1741591316210,7.88503979,127.62,127.6,7.8957866]
[1741591316703,7.88503979,127.62,127.6,0.0591866]
[1741591317110,0.04943979,127.62,127.61,7.8362]
[1741591318212,0.04943979,127.62,127.6,7.8956866]
[1741591318510,0.04943979,127.62,127.6,0.0591866]
[1741591319312,7.88553979,127.62,127.6,0.0591866]
[1741591320213,0.04943979,127.62,127.6,7.8957866]
[1741591322315,0.04943979,127.62,127.61,7.8362]
[1741591325916,0.04943979,127.62,127.61,36.3762]
[1741591326117,7.8328,127.67,127.64,7.8338]
[1741591326715,16.7444591,127.68,127.65,7.8336]
[1741591326914,8.9122591,127.68,127.65,7.8336]
[1741591327208,8.96923156,127.68,127.65,7.8874793]
[1741591327716,7.8328,127.67,127.65,0.0538793]
[1741591327918,8.96923156,127.68,127.65,0.0538793]
[1741591328218,8.9122591,127.66,127.65,0.0538793]
[1741591328517,16.7453591,127.66,127.65,0.0538793]
[1741591328713,16.7453591,127.66,127.58,6.2735]
[1741591328714,16.7453591,127.66,127.59,8.9122591]
[1741591328922,8.9122591,127.64,127.58,15.1857591]
[1741591329418,7.8353,127.63,127.6,7.8364]
[1741591329605,8.9122591,127.64,127.58,15.1857591]
[1741591329810,8.9122591,127.64,127.6,8.9122591]
[1741591330013,7.88720645,127.62,127.6,8.97061934]
[1741591330317,0.05130645,127.62,127.6,8.97061934]
[1741591330518,7.88720645,127.62,127.6,8.97061934]
[1741591333221,7.88720645,127.62,127.6,16.80731934]
[1741591333417,0.05130645,127.62,127.6,37.57061934]
[1741591333822,0.05130645,127.62,127.6,28.65836024]
[1741591334223,0.05130645,127.62,127.61,7.8362]
[1741591335926,0.05130645,127.62,127.6,28.65836024]
[1741591336124,0.05130645,127.62,127.6,0.05836024]
[1741591337422,0.05130645,127.62,127.6,7.89476024]
[1741591337813,7.88720645,127.62,127.6,7.89476024]
[1741591338418,7.88720645,127.62,127.6,0.05836024]
[1741591339116,7.8362,127.61,127.6,0.05836024]
[1741591339821,0.05130645,127.62,127.6,0.05836024]
[1741591340914,0.05130645,127.62,127.61,7.8362]
[1741591342715,0.05130645,127.62,127.6,37.57061934]
[1741591343019,0.05130645,127.62,127.6,0.05836024]
[1741591343220,7.8362,127.61,127.6,0.05836024]
[1741591343423,0.05130645,127.62,127.6,0.05836024]
[1741591343925,0.05130645,127.62,127.6,7.89516024]
[1741591344823,0.05130645,127.62,127.61,7.8362]
[1741591345126,0.05130645,127.62,127.6,8.97061934]
[1741591345325,0.05130645,127.62,127.61,7.8362]
[1741591345526,0.05130645,127.62,127.6,8.97061934]
[1741591345919,0.05130645,127.62,127.6,16.80711934]
[1741591347229,7.88700645,127.62,127.6,16.80711934]
[1741591348726,0.05130645,127.62,127.6,0.05836024]
[1741591348926,7.8362,127.61,127.6,0.05836024]
[1741591352427,0.05130645,127.62,127.6,0.05836024]
[1741591352633,0.05130645,127.62,127.6,7.89476024]
[1741591353842,7.88720645,127.62,127.6,7.89476024]
[1741591354043,7.88720645,127.62,127.6,0.05836024]
[1741591354945,0.05130645,127.62,127.6,7.89476024]
[1741591355938,7.88720645,127.62,127.6,7.89476024]
[1741591356139,0.05130645,127.62,127.6,0.05836024]
[1741591356640,7.8362,127.61,127.6,0.05836024]
[1741591357945,7.88720645,127.62,127.6,0.05836024]
[1741591358535,7.88720645,127.62,127.6,7.89496024]
[1741591359645,0.05130645,127.62,127.6,7.89496024]
[1741591359849,0.05130645,127.62,127.6,0.05836024]
[1741591360050,7.88730645,127.62,127.6,0.05836024]
[1741591360347,0.05130645,127.62,127.6,0.05836024]
[1741591360548,0.05130645,127.62,127.61,16.7484591]
[1741591361244,0.05130645,127.62,127.6,0.05836024]
[1741591361646,0.05130645,127.62,127.61,7.8362]
[1741591362649,0.05130645,127.62,127.6,0.05836024]
[1741591362947,7.88720645,127.62,127.6,0.05836024]
[1741591363750,0.05130645,127.62,127.6,7.89466024]
[1741591363947,0.05130645,127.62,127.6,0.05836024]
[1741591364147,0.05130645,127.62,127.61,37.4522591]
[1741591364651,0.05130645,127.62,127.61,45.2884591]
[1741591368052,0.05130645,127.62,127.61,37.4522591]
[1741591368848,0.05130645,127.62,127.61,45.2884591]
[1741591369058,0.05130645,127.62,127.61,8.9122591]
[1741591369253,0.05130645,127.62,127.6,0.05836024]
[1741591369452,7.88720645,127.62,127.6,0.05836024]
[1741591371042,7.88720645,127.62,127.6,7.89506024]
[1741591371442,7.88720645,127.62,127.6,0.05836024]
[1741591371654,7.8362,127.61,127.6,0.05836024]
[1741591371854,0.05130645,127.62,127.6,0.05836024]
[1741591372255,7.8362,127.61,127.6,0.05836024]
[1741591372857,7.88720645,127.62,127.6,0.05836024]
[1741591373059,0.05130645,127.62,127.6,7.89486024]
[1741591374060,0.05130645,127.62,127.6,0.05836024]
[1741591374262,7.88690645,127.62,127.6,0.05836024]
[1741591374657,7.8362,127.61,127.6,0.05836024]
[1741591376458,0.05130645,127.62,127.6,0.05836024]
[1741591376963,7.88720645,127.62,127.6,0.05836024]
[1741591377364,0.05130645,127.62,127.6,0.05836024]
[1741591377563,7.88730645,127.62,127.6,0.05836024]
[1741591377962,0.05130645,127.62,127.6,0.05836024]
[1741591378165,0.05130645,127.62,127.6,7.89506024]
[1741591378462,0.05130645,127.62,127.6,0.05836024]
[1741591378669,0.05130645,127.62,127.61,7.8362]
[1741591379057,0.05130645,127.62,127.61,16.7484591]
[1741591379668,0.05130645,127.62,127.6,0.05836024]
[1741591379868,0.05130645,127.62,127.6,7.89486024]
[1741591380175,7.8362,127.61,127.6,0.05836024]
[1741591380365,0.05130645,127.62,127.6,0.05836024]
[1741591380760,0.05130645,127.62,127.61,7.8362]
[1741591380957,0.05130645,127.62,127.6,8.97061934]
[1741591381663,7.88700645,127.62,127.6,16.80701934]
[1741591382565,7.88700645,127.62,127.6,8.97061934]
[1741591382768,37.4522591,127.61,127.52,34.69470902]
[1741591382969,8.9122591,127.54,127.52,34.69470902]
[1741591383269,37.5922591,127.54,127.52,17.50740609]
[1741591383870,37.65195732,127.54,127.52,17.56669277]
[1741591384071,37.65195732,127.54,127.52,0.05928668]
[1741591384271,7.8411,127.53,127.52,0.05928668]
[1741591384472,37.65195732,127.54,127.52,0.05928668]
[1741591384870,45.49305732,127.54,127.52,0.05928668]
[1741591385273,7.90079822,127.54,127.52,0.05928668]
[1741591385468,0.05969822,127.54,127.52,0.05928668]
[1741591385673,7.8411,127.53,127.52,0.05928668]
[1741591386873,7.90039822,127.54,127.52,0.05928668]
[1741591387076,0.05969822,127.54,127.52,0.05928668]
[1741591387273,8.97195732,127.54,127.52,0.05928668]
[1741591387578,7.8411,127.53,127.52,0.05928668]
[1741591388978,16.81275732,127.54,127.52,0.05928668]
[1741591390179,7.8411,127.53,127.52,0.05928668]
[1741591391078,7.90039822,127.54,127.52,0.05928668]
[1741591392078,8.9122591,127.5,127.43,10.8723591]
[1741591392478,7.8445,127.48,127.44,7.8466]
[1741591392877,8.9122591,127.5,127.43,39.6523591]
[1741591393081,0.06002342,127.47,127.45,0.05436159]
[1741591393681,7.90512342,127.47,127.45,0.05436159]
[1741591393881,0.06002342,127.47,127.45,0.05436159]
[1741591396880,0.06002342,127.47,127.45,0.05436159]
[1741591398285,0.06002342,127.47,127.45,7.90036159]
[1741591398782,0.06002342,127.47,127.45,37.70662069]
[1741591398975,8.9122591,127.5,127.45,37.70662069]
[1741591399385,8.9122591,127.5,127.47,7.8447]
[1741591400285,8.96693417,127.5,127.47,7.8447]
[1741591400484,0.05467507,127.5,127.48,28.72]
[1741591400881,0.05467507,127.5,127.48,28.77883663]
[1741591401079,0.05467507,127.5,127.49,7.8435]
[1741591402991,0.05467507,127.5,127.48,28.77883663]
[1741591403283,0.05467507,127.5,127.48,36.62263663]
[1741591403488,0.05467507,127.5,127.48,28.77883663]
[1741591403678,8.9122591,127.52,127.48,28.77883663]
[1741591403883,8.9122591,127.54,127.48,28.77883663]
[1741591404189,8.9122591,127.54,127.48,28.72]
[1741591404490,16.7530591,127.54,127.5,7.8425]
[1741591404687,8.9122591,127.54,127.5,7.8425]
[1741591404889,8.9122591,127.52,127.51,0.05600049]
[1741591405189,16.7541591,127.52,127.51,0.05600049]
[1741591405388,8.9122591,127.52,127.51,0.05600049]
[1741591406389,16.7539591,127.52,127.51,0.05600049]
[1741591406590,8.9122591,127.52,127.51,0.05600049]
[1741591407388,16.7539591,127.52,127.51,0.05600049]
[1741591407577,0.05694707,127.53,127.51,0.05600049]
[1741591408484,7.8417,127.52,127.51,0.05600049]
[1741591409185,7.8417,127.52,127.51,4.9e-07]
[1741591409389,7.8439,127.49,127.44,30.7621]
[1741591409691,8.9122591,127.49,127.45,7.8457]
[1741591409988,7.8448,127.48,127.44,30.7621]
[1741591410286,7.8448,127.48,127.44,9.9284]
[1741591410488,8.96896432,127.47,127.45,0.05390944]
[1741591411684,0.05670522,127.47,127.45,0.05390944]
[1741591412281,0.05670522,127.47,127.46,7.8454]
[1741591412793,0.05670522,127.47,127.45,0.05390944]
[1741591412986,0.05670522,127.47,127.45,7.89960944]
[1741591413182,0.05670522,127.47,127.45,0.05390944]
[1741591415088,7.8454,127.46,127.45,0.05390944]
[1741591415899,8.96896432,127.47,127.4,8.9122591]
[1741591416192,8.9122591,127.44,127.38,8.9122591]
[1741591416394,37.5522591,127.44,127.38,8.9122591]
[1741591416594,7.8488,127.41,127.38,16.7623591]
[1741591416784,8.9122591,127.4,127.36,8.9122591]
[1741591417091,16.7615591,127.4,127.38,0.05232091]
[1741591417489,37.64924923,127.41,127.38,0.05232091]
[1741591418291,28.73699013,127.41,127.38,0.05232091]
[1741591418889,36.58589013,127.41,127.38,0.05232091]
[1741591419394,28.73699013,127.41,127.38,0.05232091]
[1741591420290,28.73699013,127.41,127.39,7.8497]
[1741591420487,0.05699013,127.41,127.39,7.8497]
[1741591421495,0.05699013,127.41,127.38,7.90252091]
[1741591422993,7.90559013,127.41,127.38,7.90252091]
[1741591423392,7.90559013,127.41,127.38,0.05232091]
[1741591423595,7.8491,127.4,127.38,0.05232091]
[1741591423993,7.8502,127.39,127.35,7.8518]
[1741591424189,7.8502,127.39,127.33,1.9367]
[1741591424396,28.66,127.4,127.33,1.9367]
[1741591424997,7.8501,127.39,127.35,7.8518]
[1741591425198,0.05038304,127.38,127.35,7.893563]
[1741591425399,0.05038304,127.38,127.35,0.041763]
[1741591425601,0.05038304,127.38,127.36,7.8512]
[1741591426293,0.05038304,127.38,127.35,0.041763]
[1741591426703,7.851,127.37,127.35,0.041763]
[1741591427099,0.05038304,127.38,127.35,0.041763]
[1741591429105,7.8515,127.37,127.35,0.041763]
[1741591429907,7.90098304,127.38,127.35,0.041763]
[1741591430405,0.05038304,127.38,127.35,0.041763]
[1741591430605,7.8513,127.37,127.35,0.041763]
[1741591430806,0.05038304,127.38,127.35,7.893663]
[1741591431004,0.05038304,127.38,127.35,0.041763]
[1741591431406,7.90098304,127.38,127.35,7.893663]
[1741591433106,7.90098304,127.38,127.35,0.041763]
[1741591433300,7.90098304,127.38,127.36,7.8515]
[1741591434412,7.90098304,127.38,127.35,0.041763]
[1741591434609,7.90098304,127.38,127.35,7.893663]
[1741591435010,7.90098304,127.38,127.35,0.041763]
[1741591435211,7.90098304,127.38,127.36,7.8515]
[1741591435411,7.90098304,127.38,127.35,0.041763]
[1741591435609,7.90098304,127.38,127.35,7.893563]
[1741591435806,7.90098304,127.38,127.35,0.041763]
[1741591437409,7.90098304,127.38,127.36,7.8516]
[1741591437815,7.90098304,127.38,127.35,0.041763]
[1741591438114,7.8511,127.37,127.35,7.893663]
[1741591440032,7.90098304,127.38,127.35,7.893663]
[1741591440330,0.05038304,127.38,127.35,8.98926032]
[1741591441425,8.99788036,127.38,127.35,0.041763]
[1741591441732,7.8512,127.37,127.35,0.041763]
[1741591442230,7.8516,127.36,127.35,0.041763]
[1741591447338,37.54749732,127.36,127.28,8.94749732]
[1741591447528,8.94749732,127.34,127.28,8.94749732]
[1741591447729,8.94749732,127.34,127.28,16.80369732]
[1741591447929,8.94749732,127.34,127.3,8.94749732]
[1741591448329,7.91336489,127.33,127.3,8.94749732]
[1741591448937,7.91336489,127.33,127.3,16.80269732]
[1741591449331,0.05966489,127.33,127.3,16.80269732]
[1741591449631,0.05966489,127.33,127.31,7.8546]
[1741591449936,0.05966489,127.33,127.3,8.94749732]
[1741591450132,7.91306489,127.33,127.3,8.94749732]
[1741591450330,0.05966489,127.33,127.32,8.94749732]
[1741591450534,8.94749732,127.4,127.32,37.58749732]
[1741591450831,8.94749732,127.4,127.34,8.94749732]
[1741591451036,8.94749732,127.4,127.33,8.94749732]
[1741591451232,8.94749732,127.38,127.33,8.94749732]
[1741591451535,0.05796452,127.37,127.34,0.05001238]
[1741591451732,0.05796452,127.37,127.35,8.94749732]
[1741591452335,0.05796452,127.37,127.36,7.8516]
[1741591452837,0.05796452,127.37,127.35,8.94749732]
[1741591453036,7.90896452,127.37,127.35,8.94749732]
[1741591453730,7.8516,127.36,127.35,8.94749732]
[1741591454137,0.05796452,127.37,127.35,8.94749732]
[1741591454945,0.05796452,127.37,127.34,0.05001238]
[1741591455343,7.8519,127.36,127.34,0.05001238]
[1741591455845,0.05796452,127.37,127.34,0.05001238]
[1741591456543,7.8522,127.35,127.34,0.05001238]
[1741591459645,8.94749732,127.36,127.3,8.94749732]
[1741591460647,7.90682536,127.34,127.31,7.8546]
[1741591460842,7.90682536,127.34,127.32,8.94749732]
[1741591461039,0.05352536,127.34,127.32,8.94749732]
[1741591461345,7.90662536,127.34,127.32,8.94749732]
[1741591461647,0.05352536,127.34,127.32,8.94749732]
[1741591461847,7.90642536,127.34,127.32,8.94749732]
[1741591462151,0.05352536,127.34,127.3,8.94749732]
[1741591462445,0.05352536,127.34,127.3,16.80249732]
[1741591462446,7.8537,127.33,127.3,16.80249732]
[1741591462646,9.00102268,127.34,127.26,192.0]
[1741591462841,8.94749732,127.34,127.28,8.94749732]
[1741591463043,0.05573588,127.31,127.28,8.94749732]
[1741591463245,7.91073588,127.31,127.28,16.80369732]
[1741591463442,0.05573588,127.31,127.28,8.94749732]
[1741591463847,0.05573588,127.31,127.3,16.80279732]
[1741591465449,37.76749732,127.36,127.31,7.8541]
[1741591465642,8.94749732,127.36,127.31,7.8541]
[1741591465842,8.94749732,127.36,127.3,37.74749732]
[1741591466152,7.8526,127.35,127.32,7.8539]
[1741591466350,8.94749732,127.36,127.3,37.74749732]
[1741591466650,0.05739092,127.34,127.32,9.00060982]
[1741591467151,7.8506,127.38,127.33,28.82]
[1741591467345,7.8506,127.38,127.34,8.94749732]
[1741591467548,10.95059732,127.4,127.34,8.94749732]
[1741591468446,0.05248435,127.38,127.36,0.05018915]
[1741591468641,43.66071684,127.44,127.37,28.9]
[1741591469044,7.8475,127.43,127.39,7.8492]
[1741591469751,0.0510063,127.42,127.4,0.05667]
[1741591470448,7.8485,127.41,127.4,0.05667]
[1741591471447,7.8991063,127.42,127.4,0.05667]
[1741591472252,0.0510063,127.42,127.4,7.90577]
[1741591472554,0.0510063,127.42,127.4,0.05667]
[1741591472956,7.8989063,127.42,127.4,0.05667]
[1741591473358,0.0510063,127.42,127.4,0.05667]
[1741591473544,7.8485,127.41,127.4,0.05667]
[1741591475855,14.03254562,127.42,127.33,28.86]
[1741591476158,13.98153932,127.42,127.34,7.8525]
[1741591476353,7.8516,127.36,127.33,28.86]
[1741591476753,42.84153932,127.4,127.33,28.86]
[1741591477058,0.05902166,127.36,127.33,28.91111292]
[1741591477250,0.05902166,127.36,127.33,36.76441292]
[1741591477453,0.05902166,127.36,127.33,28.91111292]
[1741591477950,0.05902166,127.36,127.33,36.76421292]
[1741591478150,7.91072166,127.36,127.33,36.76421292]
[1741591480858,7.8522,127.35,127.33,28.91111292]
[1741591481257,7.8522,127.35,127.33,0.05111292]
[1741591481758,7.91082166,127.36,127.33,7.90441292]
[1741591482960,7.8528,127.34,127.33,0.05111292]
[1741591484248,0.05902166,127.36,127.33,0.05111292]
[1741591484459,7.91072166,127.36,127.33,0.05111292]
[1741591484853,7.91072166,127.36,127.33,7.90421292]
[1741591486160,7.91072166,127.36,127.33,0.05111292]
[1741591486359,0.05902166,127.36,127.34,7.8527]
[1741591487062,7.91062166,127.36,127.34,7.8527]
[1741591488363,7.91062166,127.36,127.33,7.90421292]
[1741591489059,7.8528,127.34,127.33,0.05111292]
[1741591491454,7.8525,127.35,127.33,0.05111292]
[1741591491857,9.01225603,127.36,127.33,0.05111292]
[1741591492058,7.8528,127.34,127.33,0.05111292]
[1741591493062,0.05902166,127.36,127.33,0.05111292]
[1741591494463,7.91062166,127.36,127.34,7.8525]
[1741591494767,0.05902166,127.36,127.34,7.8525]
[1741591495468,0.05902166,127.36,127.33,7.90421292]
[1741591495667,0.05902166,127.36,127.33,0.05111292]
[1741591496167,7.91092166,127.36,127.33,7.90421292]
[1741591496368,0.05902166,127.36,127.33,7.90421292]
[1741591496970,0.05902166,127.36,127.33,0.05111292]
[1741591497471,7.8528,127.34,127.33,0.05111292]
[1741591498774,7.8525,127.35,127.33,0.05111292]
[1741591499371,0.05902166,127.36,127.33,0.05111292]
[1741591499868,0.05902166,127.36,127.33,7.90421292]
[1741591500076,0.05902166,127.36,127.33,0.05111292]
[1741591502076,7.8528,127.34,127.33,0.05111292]
[1741591503178,28.69902166,127.36,127.3,1.9884]
[1741591503475,7.8546,127.32,127.3,1.9884]
[1741591503674,28.64,127.36,127.3,1.9884]
[1741591503879,28.64,127.36,127.32,7.8537]
[1741591504178,28.68,127.38,127.32,7.8537]
[1741591504477,0.05195586,127.35,127.33,0.05915043]
[1741591505065,7.90445586,127.35,127.33,0.05915043]
[1741591505269,0.05195586,127.35,127.33,7.91245043]
[1741591506476,7.90415586,127.35,127.33,0.05915043]
[1741591507867,7.8528,127.34,127.33,0.05915043]
[1741591508076,28.71195586,127.35,127.29,2.0139]
[1741591508281,42.6998522,127.35,127.29,2.0139]
[1741591508584,42.6998522,127.35,127.27,38.6628]
[1741591508774,42.64789634,127.35,127.27,38.6628]
[1741591509279,7.855,127.31,127.27,38.6628]
[1741591509480,7.855,127.31,127.28,7.8564]
[1741591509970,0.05339119,127.32,127.27,44.79389634]
[1741591510280,7.90779119,127.32,127.29,7.8558]
[1741591510888,7.8553,127.3,127.28,7.8562]
[1741591511079,0.05339119,127.32,127.28,36.4762]
[1741591511583,7.8549,127.31,127.28,36.4762]
[1741591511983,7.8549,127.31,127.28,28.62]
[1741591512179,7.8549,127.31,127.29,7.8558]
[1741591512577,7.8549,127.31,127.28,28.62]
[1741591512779,7.8549,127.31,127.28,36.4762]
[1741591514186,7.8554,127.3,127.28,28.62]
[1741591514382,9.011623,127.32,127.27,11.10423181]
[1741591514579,7.8573,127.27,127.25,39.72243181]
[1741591514779,7.8573,127.27,127.25,11.10243181]
[1741591514986,0.0531021,127.27,127.25,8.95823181]
[1741591515188,7.8577,127.26,127.25,8.95823181]
[1741591516283,7.9105021,127.27,127.25,8.95823181]
[1741591517482,0.0531021,127.27,127.24,10.95163181]
[1741591517795,8.95823181,127.26,127.21,208.81853181]
[1741591517996,8.95823181,127.26,127.21,16.81853181]
[1741591518285,7.8587,127.25,127.21,16.81853181]
[1741591518484,7.8587,127.25,127.22,7.86]
[1741591518678,0.05883527,127.24,127.21,8.95823181]
[1741591518882,0.05883527,127.24,127.19,39.58823181]
[1741591519289,9.01706708,127.24,127.19,10.96823181]
[1741591519681,7.8606,127.22,127.19,10.96823181]
[1741591520685,7.8597,127.23,127.19,10.96823181]
[1741591521290,7.8604,127.22,127.19,10.96823181]
[1741591521885,9.01706708,127.24,127.19,10.96823181]
[1741591522287,9.01706708,127.24,127.19,18.82993181]
[1741591522487,16.87646708,127.24,127.19,18.82993181]
[1741591522993,0.05883527,127.24,127.22,8.95823181]
[1741591523893,0.05883527,127.24,127.22,16.81823181]
[1741591524984,0.05883527,127.24,127.22,8.95823181]
[1741591525188,0.05883527,127.24,127.21,16.81873181]
[1741591526195,7.91813527,127.24,127.21,16.81873181]
[1741591526490,0.05883527,127.24,127.2,45.43933181]
[1741591526794,7.8596,127.23,127.2,36.4811]
[1741591527006,0.05883527,127.24,127.19,10.96823181]
[1741591527294,7.91793527,127.24,127.21,7.8605]
[1741591528295,0.05883527,127.24,127.19,10.96823181]
[1741591528896,7.8599,127.23,127.2,7.8613]
[1741591530193,0.05883527,127.24,127.19,18.83003181]
[1741591530194,7.8602,127.22,127.19,18.83003181]
[1741591530397,8.95823181,127.23,127.18,2.1406]
[1741591530797,7.91248393,127.22,127.19,7.8619]
[1741591531294,0.05188393,127.22,127.18,2.1406]
[1741591531694,7.91238393,127.22,127.19,7.8617]
[1741591531893,7.91238393,127.22,127.18,2.1406]
[1741591532499,7.8609,127.21,127.18,10.003]
[1741591533498,7.8609,127.21,127.18,2.1406]
[1741591534305,7.8609,127.21,127.18,10.003]
[1741591534504,0.05188393,127.22,127.18,2.1406]
[1741591534698,0.05188393,127.22,127.19,8.95823181]
[1741591534900,0.05188393,127.22,127.19,16.81993181]
[1741591536103,0.05188393,127.22,127.19,8.95823181]
[1741591536313,0.05188393,127.22,127.21,8.95823181]
[1741591536605,0.05188393,127.22,127.21,16.81903181]
[1741591537206,0.05188393,127.22,127.21,8.95823181]
[1741591537609,0.05188393,127.22,127.19,2.1308]
[1741591538210,7.8613,127.21,127.19,2.1308]
[1741591538804,0.05188393,127.22,127.18,2.1406]
[1741591539001,7.8614,127.2,127.18,2.1406]
[1741591539507,0.05188393,127.22,127.18,2.1406]
[1741591539806,7.8611,127.21,127.18,10.0028]
[1741591540106,0.05188393,127.22,127.18,10.0028]
[1741591540309,0.05188393,127.22,127.17,47.50203181]
[1741591540712,7.8611,127.21,127.17,10.99903181]
[1741591540911,0.05188393,127.22,127.19,8.95823181]
[1741591541412,0.05188393,127.22,127.21,7.8608]